bitfinex/quotes_SOLUSD_20250821
["timestamp","ask_amount","ask_price","bid_price","bid_amount"]
[1755741345690,13.59559401,188.25,188.15,14.315594]
[1755741346010,0.65,188.26,188.23,3.73670311]
[1755741346506,17.33229712,188.24,188.15,13.595594]
[1755741346674,0.65,188.23,188.19,3.73670311]
[1755741346873,17.33229712,188.24,188.19,3.73670311]
[1755741347108,0.65,188.23,188.19,3.73670311]
[1755741347308,0.65,188.24,188.21,3.73670311]
[1755741347681,0.65,188.35,188.23,3.73670311]
[1755741347886,0.1,188.39,188.37,26.0]
[1755741348090,0.65,188.51,188.42,0.28432314]
[1755741348390,3.73670311,188.51,188.41,26.0]
[1755741348717,3.73670311,188.48,188.42,3.73670311]
[1755741348879,3.73670311,188.47,188.41,26.0]
[1755741349083,10.0,188.55,188.42,33.63442085]
[1755741349284,38.04,188.58,188.47,3.73670311]
[1755741349285,0.65,188.54,188.47,3.73670311]
[1755741349486,0.65,188.54,188.48,3.89771774]
[1755741349487,3.73670311,188.52,188.48,3.89771774]
[1755741349697,10.0,188.56,188.45,3.73670311]
[1755741349698,4.38670311,188.51,188.45,3.73670311]
[1755741349892,4.38670311,188.51,188.42,0.28432314]
[1755741349893,0.65,188.5,188.46,3.73670311]
[1755741350104,14.24559401,188.49,188.46,3.73670311]
[1755741350303,0.65,188.49,188.48,6.02911528]
[1755741350508,0.65,188.49,188.42,0.28432314]
[1755741350707,0.65,188.49,188.46,6.02911528]
[1755741350924,0.65,188.57,188.48,6.02911528]
[1755741351091,0.65,188.57,188.53,6.02911528]
[1755741351295,0.65,188.56,188.53,6.02911528]
[1755741351497,0.65,188.55,188.53,6.02911528]
[1755741351991,0.65,188.55,188.48,26.0]
[1755741352196,0.65,188.55,188.52,6.02911528]
[1755741352605,0.65,188.55,188.49,0.72]
[1755741352606,0.65,188.55,188.53,6.02911528]
[1755741352794,0.65,188.57,188.53,6.02911528]
[1755741352993,0.69,188.56,188.52,6.02911528]
[1755741353207,0.69,188.55,188.52,6.02911528]
[1755741353688,19.62470929,188.58,188.49,0.72]
[1755741354018,0.69,188.57,188.53,21.97511128]
[1755741354331,0.69,188.56,188.54,6.02911528]
[1755741354832,14.34559401,188.59,188.55,6.02911528]
[1755741355031,0.69,188.58,188.55,6.02911528]
[1755741355508,0.69,188.57,188.55,6.02911528]
[1755741355912,0.69,188.57,188.54,6.02911528]
[1755741356116,0.06,188.59,188.54,6.02911528]
[1755741356295,13.59559401,188.58,188.53,15.945996]
[1755741356496,0.69,188.57,188.54,6.02911528]
[1755741357016,13.65559401,188.59,188.55,6.02911528]
[1755741357518,0.69,188.58,188.54,6.02911528]
[1755741357707,0.69,188.57,188.54,6.02911528]
[1755741358104,0.69,188.57,188.55,6.02911528]
[1755741358707,0.69,188.56,188.5,15.944301]
[1755741358907,19.62470929,188.55,188.48,26.0]
[1755741359110,0.69,188.54,188.5,6.02911528]
[1755741359304,0.69,188.54,188.51,6.02911528]
[1755741359512,14.28559401,188.56,188.52,6.02911528]
[1755741359707,0.69,188.55,188.52,6.02911528]
[1755741359913,0.69,188.54,188.48,26.71]
[1755741360118,13.59559401,188.53,188.45,15.947691]
[1755741360422,13.59559401,188.51,188.45,15.947691]
[1755741360631,13.59559401,188.51,188.47,6.02911528]
[1755741360808,13.59559401,188.51,188.44,26.71]
[1755741360809,0.69,188.5,188.44,26.71]
[1755741360999,0.69,188.5,188.47,6.02911528]
[1755741361194,13.59559401,188.49,188.47,6.02911528]
[1755741361403,0.69,188.48,188.45,6.02911528]
[1755741361602,6.71911528,188.47,188.39,14.305594]
[1755741361814,13.59559401,188.46,188.41,6.02911528]
[1755741362012,6.71911528,188.47,188.37,5.37884057]
[1755741362013,13.59559401,188.47,188.42,3.85375155]
[1755741362228,13.59559401,188.5,188.43,4.56350731]
[1755741362416,13.59559401,188.5,188.43,0.71]
[1755741362608,13.59559401,188.52,188.44,3.85333973]
[1755741362802,13.59559401,188.52,188.46,26.0]
[1755741363016,16.02911528,188.65,188.51,6.02911528]
[1755741363220,0.69,188.56,188.53,6.02911528]
[1755741363513,13.59559401,188.55,188.51,6.02911528]
[1755741363848,13.59559401,188.57,188.54,6.02911528]
[1755741364028,13.59559401,188.57,188.55,6.02911528]
[1755741364332,0.69,188.58,188.55,6.02911528]
[1755741364509,0.06,188.59,188.57,6.02911528]
[1755741364831,0.06,188.59,188.58,6.02911528]
[1755741365026,0.06,188.59,188.5,0.28432314]
[1755741365233,0.06,188.59,188.57,6.02911528]
[1755741365930,13.59559401,188.57,188.54,6.02911528]
[1755741366119,14.28559401,188.57,188.54,6.02911528]
[1755741366316,0.06,188.59,188.55,6.02911528]
[1755741366532,0.06,188.59,188.57,6.02911528]
[1755741367235,0.06,188.59,188.58,6.02911528]
[1755741368032,0.06,188.59,188.58,6.73911528]
[1755741368709,0.06,188.59,188.58,6.02911528]
[1755741369432,0.75,188.59,188.52,26.0]
[1755741369614,0.75,188.59,188.55,6.02911528]
[1755741369816,0.06,188.59,188.57,6.02911528]
[1755741370421,0.06,188.59,188.58,10.58724144]
[1755741370626,0.06,188.59,188.58,9.87724144]
[1755741371025,0.06,188.59,188.58,10.58724144]
[1755741371517,0.06,188.59,188.58,9.87748764]
[1755741371713,0.06,188.59,188.55,0.71]
[1755741371922,0.75,188.59,188.56,6.02911528]
[1755741372216,0.06,188.59,188.58,6.02911528]
[1755741372627,0.06,188.59,188.57,6.02911528]
[1755741372945,0.06,188.59,188.56,6.02911528]
[1755741373725,0.06,188.59,188.57,6.02911528]
[1755741374118,0.69,188.58,188.53,26.0]
[1755741374442,0.69,188.58,188.55,6.02911528]
[1755741374630,6.08911528,188.59,188.51,0.71]
[1755741374833,6.02911528,188.56,188.52,3.8463514]
[1755741375039,0.69,188.55,188.48,0.71]
[1755741375349,0.69,188.55,188.49,3.84826285]
[1755741375529,6.71911528,188.55,188.5,6.02911528]
[1755741375727,6.02911528,188.53,188.45,0.71]
[1755741375934,6.02911528,188.52,188.47,6.02911528]
[1755741376128,6.02911528,188.53,188.48,6.02911528]
[1755741376449,0.69,188.51,188.45,0.71]
[1755741376745,0.69,188.51,188.46,3.85212861]
[1755741377046,13.59559401,188.55,188.38,38.2]
[1755741377047,44.91911528,188.5,188.45,6.02911528]
[1755741377340,0.69,188.49,188.45,6.02911528]
[1755741377541,44.22911528,188.5,188.45,6.02911528]
[1755741377843,0.69,188.48,188.45,6.02911528]
[1755741378028,6.71911528,188.47,188.38,13.595594]
[1755741378236,6.71911528,188.46,188.41,6.02911528]
[1755741378429,20.31470929,188.45,188.4,6.02911528]
[1755741378630,38.89,188.44,188.4,6.02911528]
[1755741378848,0.69,188.43,188.4,6.02911528]
[1755741379337,38.2,188.44,188.4,6.02911528]
[1755741379526,38.89,188.44,188.43,26.0]
[1755741380337,38.89,188.44,188.37,26.74]
[1755741380523,38.89,188.44,188.42,26.0]
[1755741380718,6.71911528,188.43,188.37,0.03]
[1755741380936,6.02911528,188.41,188.37,0.03]
[1755741381137,13.59559401,188.4,188.37,0.03]
[1755741381329,19.62470929,188.38,188.37,0.03]
[1755741381634,20.45687086,188.38,188.37,0.03]
[1755741382423,21.78693046,188.38,188.37,0.03]
[1755741382624,22.0712536,188.38,188.37,0.03]
[1755741383047,32.0712536,188.38,188.37,0.03]
[1755741387033,50.02207872,188.36,188.35,0.03]
[1755741387238,57.3812536,188.36,188.35,0.03]
[1755741387574,96.3012536,188.36,188.35,0.03]
[1755741387750,70.3012536,188.36,188.35,0.03]
[1755741388060,49.73775558,188.34,188.33,0.03]
[1755741388359,85.33693046,188.34,188.33,0.03]
[1755741388666,96.01693046,188.34,188.33,0.03]
[1755741389263,53.16565361,188.34,188.33,0.03]
[1755741389645,59.33693046,188.34,188.33,0.03]
[1755741389854,60.01693046,188.34,188.33,0.03]
[1755741390165,54.12997675,188.34,188.33,0.03]
[1755741390365,15.06781518,188.34,188.33,0.03]
[1755741390561,53.16565361,188.34,188.33,0.71]
[1755741390879,53.30781518,188.34,188.33,0.03]
[1755741391849,51.83559401,188.34,188.33,6.05911528]
[1755741392045,51.83559401,188.34,188.33,6.73911528]
[1755741392337,38.24,188.34,188.33,0.71]
[1755741392863,13.59559401,188.36,188.33,0.03]
[1755741393038,6.70911528,188.34,188.33,0.03]
[1755741393239,2.1524007,188.34,188.33,0.03]
[1755741393460,20.731194,188.34,188.33,0.03]
[1755741393650,22.06143313,188.34,188.33,0.03]
[1755741394777,13.59559401,188.34,188.33,6.05911528]
[1755741394974,51.83559401,188.34,188.33,6.73911528]
[1755741395285,0.68,188.42,188.33,6.73911528]
[1755741395450,0.21324235,188.51,188.33,6.73911528]
[1755741395451,19.62470929,188.44,188.38,6.02911528]
[1755741395649,13.59559401,188.41,188.37,6.02911528]
[1755741395867,13.59559401,188.39,188.37,6.02911528]
[1755741396469,13.59559401,188.39,188.34,0.68]
[1755741396660,13.59559401,188.39,188.35,0.68]
[1755741396957,13.59559401,188.39,188.36,0.68]
[1755741398074,13.59559401,188.39,188.33,0.71]
[1755741401085,38.2,188.38,188.33,0.71]
[1755741401579,38.2,188.37,188.34,0.68]
[1755741401883,38.2,188.37,188.35,0.68]
[1755741402683,38.2,188.37,188.33,0.03]
[1755741402981,38.2,188.37,188.36,6.02911528]
[1755741404387,38.2,188.37,188.36,6.70911528]
[1755741404388,38.16,188.37,188.36,6.70911528]
[1755741404691,13.59559401,188.42,188.36,6.70911528]
[1755741404884,51.75559401,188.41,188.4,6.02911528]
[1755741406298,38.16,188.41,188.4,6.02911528]
[1755741406475,13.65559401,188.43,188.4,6.02911528]
[1755741406799,38.82,188.42,188.39,6.02911528]
[1755741407786,38.14,188.42,188.39,6.02911528]
[1755741407986,38.14,188.42,188.4,6.02911528]
[1755741408183,38.12,188.41,188.4,6.02911528]
[1755741409474,38.12,188.41,188.33,0.03]
[1755741409475,13.59559401,188.4,188.33,0.71]
[1755741409678,14.27559401,188.4,188.37,6.02911528]
[1755741409879,14.27559401,188.4,188.38,6.02911528]
[1755741410084,13.79775558,188.43,188.39,6.02911528]
[1755741410317,13.59559401,188.41,188.4,6.02911528]
[1755741410492,14.27559401,188.41,188.39,6.02911528]
[1755741410681,0.20216157,188.43,188.4,6.02911528]
[1755741410884,0.06,188.43,188.42,6.02911528]
[1755741411077,13.65559401,188.43,188.42,6.02911528]
[1755741411280,0.06,188.43,188.42,6.02911528]
[1755741411503,38.16,188.43,188.42,6.02911528]
[1755741412289,38.16,188.43,188.41,6.02911528]
[1755741413008,38.82,188.43,188.41,6.02911528]
[1755741413207,0.06,188.43,188.42,6.02911528]
[1755741413434,38.18,188.43,188.42,6.02911528]
[1755741414387,0.06,188.43,188.42,6.68911528]
[1755741414693,38.16,188.43,188.42,6.68911528]
[1755741415124,38.16,188.43,188.42,6.02911528]
[1755741417102,0.06,188.43,188.42,6.68911528]
[1755741417311,38.16,188.43,188.42,6.68911528]
[1755741417730,38.16,188.43,188.42,6.02911528]
[1755741418225,38.16,188.43,188.41,6.02911528]
[1755741418433,38.16,188.43,188.42,6.02911528]
[1755741418800,38.82,188.43,188.4,6.02911528]
[1755741419003,36.14216157,188.51,188.36,0.66]
[1755741419004,15.957023,188.62,188.44,15.99]
[1755741419201,0.66,188.73,188.64,26.0]
[1755741419400,1.3279565,188.72,188.65,6.62911528]
[1755741419717,39.82,188.71,188.64,32.65982458]
[1755741419921,40.48,188.7,188.66,15.0]
[1755741420104,0.66,188.69,188.66,15.0]
[1755741420306,15.0,188.75,188.62,0.6]
[1755741420524,0.66,188.68,188.67,6.02911528]
[1755741420731,40.5,188.68,188.67,6.02911528]
[1755741421608,40.5,188.68,188.67,9.9334706]
[1755741421930,39.84,188.68,188.67,9.9334706]
[1755741422317,39.82,188.72,188.67,10.5334706]
[1755741422522,39.82,188.72,188.71,6.02911528]
[1755741423841,40.48,188.72,188.65,6.02911528]
[1755741424138,39.82,188.72,188.71,6.02911528]
[1755741425343,15.0,188.75,188.71,6.62911528]
[1755741425548,15.0,188.75,188.74,6.02911528]
[1755741426071,15.66,188.75,188.74,6.02911528]
[1755741427051,15.0,188.75,188.74,6.02911528]
[1755741427238,15.66,188.75,188.74,6.02911528]
[1755741427958,15.0,188.75,188.74,6.02911528]
[1755741428768,15.66,188.75,188.74,6.02911528]
[1755741429852,15.0,188.75,188.74,6.02911528]
[1755741430438,15.06,188.75,188.74,6.02911528]
[1755741431036,15.72,188.75,188.74,6.02911528]
[1755741431247,15.06,188.75,188.74,6.02911528]
[1755741431836,54.86,188.75,188.74,6.02911528]
[1755741432842,55.52,188.75,188.74,6.02911528]
[1755741433744,54.86,188.75,188.74,6.02911528]
[1755741434732,15.06,188.75,188.74,6.62911528]
[1755741434938,39.74,188.8,188.74,12.65823056]
[1755741435245,39.74,188.8,188.79,6.02911528]
[1755741437666,40.4,188.8,188.72,26.6]
[1755741437838,40.4,188.8,188.79,6.02911528]
[1755741438039,39.74,188.8,188.79,6.02911528]
[1755741440079,10.0,188.96,188.76,6.62911528]
[1755741440249,0.66,188.84,188.77,26.0]
[1755741440448,39.68,188.83,188.77,26.0]
[1755741440647,39.68,188.83,188.82,6.02911528]
[1755741440948,40.34,188.83,188.82,6.02911528]
[1755741441285,39.68,188.83,188.82,6.02911528]
[1755741444435,39.68,188.83,188.77,42.522299]
[1755741444638,39.68,188.83,188.82,6.02911528]
[1755741445071,40.39,188.83,188.82,6.02911528]
[1755741445365,40.39,188.83,188.81,6.02911528]
[1755741445564,40.39,188.83,188.71,39.74216157]
[1755741445565,20.33470929,188.82,188.71,0.6]
[1755741445769,20.33470929,188.82,188.76,6.02911528]
[1755741445938,0.71,188.81,188.77,6.02911528]
[1755741446143,19.62470929,188.82,188.77,6.02911528]
[1755741446144,0.71,188.8,188.77,6.02911528]
[1755741446339,0.71,188.85,188.79,6.02911528]
[1755741446538,39.64,188.84,188.78,0.6]
[1755741446740,39.64,188.84,188.82,6.02911528]
[1755741446967,0.71,188.83,188.76,6.62911528]
[1755741448547,0.06,188.85,188.79,26.0]
[1755741448752,0.06,188.85,188.84,6.02911528]
[1755741449271,0.77,188.85,188.79,26.0]
[1755741449470,0.77,188.85,188.83,6.02911528]
[1755741449670,0.77,188.85,188.8,15.919764]
[1755741449880,6.08911528,188.85,188.8,6.02911528]
[1755741450078,0.71,188.84,188.81,6.02911528]
[1755741450256,0.71,188.83,188.77,41.922299]
[1755741450664,0.71,188.83,188.8,6.02911528]
[1755741450862,6.08911528,188.85,188.73,0.31432314]
[1755741450863,46.47911528,188.82,188.73,0.03]
[1755741451050,0.14216157,188.8,188.73,0.03]
[1755741451251,13.59559401,188.78,188.73,6.05911528]
[1755741451567,40.53,188.77,188.73,6.05911528]
[1755741451770,40.53,188.77,188.74,6.02911528]
[1755741451771,0.71,188.76,188.74,6.02911528]
[1755741452089,0.71,188.75,188.74,6.02911528]
[1755741452688,39.82,188.77,188.74,6.02911528]
[1755741452689,40.53,188.77,188.74,6.02911528]
[1755741452982,40.53,188.77,188.75,6.02911528]
[1755741453568,0.71,188.84,188.76,42.50691864]
[1755741453878,0.71,188.84,188.77,3.84868808]
[1755741454084,39.94,188.83,188.81,6.02911528]
[1755741454449,0.71,188.82,188.8,6.02911528]
[1755741454650,6.08911528,188.85,188.81,6.02911528]
[1755741454651,0.77,188.85,188.81,6.02911528]
[1755741454874,39.92,188.84,188.83,6.02911528]
[1755741455048,40.63,188.84,188.82,6.02911528]
[1755741455251,39.94,188.83,188.82,6.02911528]
[1755741456376,0.06,188.85,188.82,9.88425937]
[1755741456560,39.98,188.85,188.84,6.02911528]
[1755741456880,0.06,188.85,188.84,3.85514409]
[1755741457087,0.06,188.85,188.84,6.02911528]
[1755741458179,0.06,188.85,188.8,0.6]
[1755741458354,0.06,188.85,188.84,6.02911528]
[1755741458555,0.06,188.85,188.84,9.90190269]
[1755741460076,0.77,188.85,188.84,3.87278741]
[1755741460290,14.36559401,188.85,188.84,3.87278741]
[1755741461108,0.06,188.85,188.84,10.50190269]
[1755741461414,0.06,188.85,188.84,36.50190269]
[1755741461575,39.82,188.91,188.84,42.53101797]
[1755741461902,39.82,188.91,188.9,6.02911528]
[1755741462092,39.82,188.91,188.9,9.90190269]
[1755741462311,40.53,188.91,188.9,9.90190269]
[1755741463188,0.77,188.95,188.9,9.90190269]
[1755741463521,40.04,188.95,188.93,6.02911528]
[1755741463720,40.04,188.95,188.94,9.90190269]
[1755741464094,0.06,188.95,188.94,6.02911528]
[1755741465432,0.06,188.95,188.94,6.62911528]
[1755741466524,0.71,189.09,188.97,26.0]
[1755741466731,0.71,189.09,188.94,53.43182225]
[1755741466732,0.71,189.09,189.07,6.02911528]
[1755741467046,0.71,189.09,189.06,6.02911528]
[1755741467258,0.71,189.09,189.01,26.0]
[1755741467408,0.71,189.09,189.05,6.02911528]
[1755741468048,40.81,189.11,189.08,6.02911528]
[1755741468225,40.81,189.11,189.09,6.02911528]
[1755741468411,40.81,189.11,189.1,6.02911528]
[1755741469126,40.1,189.11,189.1,6.02911528]
[1755741470348,40.1,189.11,189.05,0.54]
[1755741470517,26.0,189.19,189.1,6.02911528]
[1755741470719,26.0,189.19,189.05,0.54]
[1755741470720,0.71,189.18,189.16,6.02911528]
[1755741470913,0.71,189.17,189.15,6.02911528]
[1755741471119,40.91,189.21,189.16,6.02911528]
[1755741471421,40.91,189.21,189.18,6.02911528]
[1755741471738,40.2,189.21,189.19,6.02911528]
[1755741471925,40.2,189.21,189.14,0.54]
[1755741471926,0.71,189.2,189.17,6.02911528]
[1755741472121,40.2,189.21,189.14,15.891093]
[1755741472324,13.59559401,189.19,189.08,0.54]
[1755741472523,0.71,189.18,189.15,6.02911528]
[1755741472724,13.59559401,189.19,189.15,6.02911528]
[1755741472956,0.71,189.17,189.15,6.02911528]
[1755741473526,19.62470929,189.19,189.13,6.02911528]
[1755741473726,0.69,189.16,189.13,6.02911528]
[1755741473948,0.69,189.15,189.13,6.02911528]
[1755741474822,0.69,189.14,189.11,6.02911528]
[1755741475025,0.69,189.13,189.09,6.02911528]
[1755741475332,0.69,189.12,189.09,6.02911528]
[1755741475539,0.69,189.11,189.03,0.54]
[1755741475736,0.69,189.17,189.1,6.02911528]
[1755741475937,40.87,189.17,189.13,6.02911528]
[1755741476135,40.87,189.17,189.14,6.02911528]
[1755741476344,0.69,189.16,189.14,6.02911528]
[1755741476566,40.18,189.17,189.14,6.02911528]
[1755741476728,40.18,189.17,189.1,0.54]
[1755741476931,40.87,189.17,189.13,6.02911528]
[1755741477152,6.71911528,189.16,189.06,26.0]
[1755741477458,0.69,189.16,189.07,0.54]
[1755741477657,0.69,189.16,188.8,98.14829632]
[1755741477658,26.0,189.0,188.73,10.03]
[1755741477950,6.02911528,188.84,188.78,6.72911528]
[1755741478150,41.06,188.85,188.8,6.02911528]
[1755741478357,6.02911528,188.87,188.81,6.72911528]
[1755741478654,6.02911528,188.82,188.77,0.7]
[1755741478867,0.5293074,188.94,188.81,6.02911528]
[1755741479030,13.595594,189.15,188.78,0.7]
[1755741479031,6.02911528,188.96,188.9,6.02911528]
[1755741479356,0.5293074,188.99,188.82,0.7]
[1755741479357,6.02911528,188.99,188.93,6.02911528]
[1755741479553,47.56911528,189.0,188.93,6.02911528]
[1755741479768,0.5293074,188.99,188.94,0.03]
[1755741480139,6.02911528,188.97,188.94,0.03]
[1755741480331,10.27624045,188.96,188.94,0.03]
[1755741481351,9.74693305,188.95,188.94,0.03]
[1755741481556,0.5293074,188.98,188.95,0.7]
[1755741481740,9.05693305,189.12,188.98,26.0]
[1755741482063,0.5293074,189.11,189.06,9.05693305]
[1755741482264,0.5293074,189.11,189.07,9.05693305]
[1755741482446,0.5293074,189.11,189.0,26.0]
[1755741482447,0.5293074,189.11,189.08,9.05693305]
[1755741482841,0.5293074,189.12,189.08,9.05693305]
[1755741483047,1.2193074,189.12,189.08,9.05693305]
[1755741483261,1.2193074,189.12,189.09,9.05693305]
[1755741483565,0.5293074,189.12,189.1,9.05693305]
[1755741483751,65.92252706,189.16,189.11,9.05693305]
[1755741483752,0.5293074,189.15,189.11,9.05693305]
[1755741483957,0.5293074,189.15,189.12,9.05693305]
[1755741484762,0.5293074,189.17,189.14,9.05693305]
[1755741484974,0.5293074,189.17,189.03,0.28432314]
[1755741484975,0.5893074,189.2,189.16,9.05693305]
[1755741485175,0.06,189.2,189.19,9.05693305]
[1755741485355,0.06,189.2,189.19,9.75693305]
[1755741485667,0.06,189.2,189.15,35.05693305]
[1755741485668,0.06,189.2,189.15,0.7]
[1755741485880,0.06,189.2,189.19,9.05693305]
[1755741488174,0.06,189.2,189.19,9.75693305]
[1755741489249,0.06,189.2,189.19,10.04125619]
[1755741489878,0.06,189.2,189.19,26.98432314]
[1755741490064,0.06,189.2,189.19,36.04125619]
[1755741491958,0.5293074,189.34,189.2,0.28432314]
[1755741492161,0.5293074,189.34,189.3,9.05693305]
[1755741492464,0.69,189.33,189.29,9.05693305]
[1755741492664,0.69,189.33,189.23,26.7]
[1755741492665,1.2193074,189.33,189.3,9.05693305]
[1755741492867,43.0693074,189.35,189.32,9.05693305]
[1755741493065,0.69,189.34,189.31,9.05693305]
[1755741493886,17.44095472,189.37,189.31,9.05693305]
[1755741494051,0.5293074,189.36,189.31,9.05693305]
[1755741494255,0.69,189.35,189.32,9.05693305]
[1755741495482,0.69,189.34,189.26,41.881839]
[1755741495786,9.05693305,189.32,189.23,0.7]
[1755741495979,10.27624045,189.31,189.23,7.754022]
[1755741496355,9.58624045,189.31,189.23,7.754022]
[1755741496598,9.58624045,189.31,188.94,14.53649882]
[1755741496599,9.05693305,189.26,189.17,0.7]
[1755741496770,0.5293074,189.25,189.17,10.7]
[1755741497096,0.5293074,189.25,189.22,9.05693305]
[1755741497297,10.27624045,189.29,189.24,9.05693305]
[1755741497471,9.05693305,189.28,189.23,9.05693305]
[1755741497661,10.27624045,189.27,189.21,9.05693305]
[1755741497860,9.74693305,189.26,189.21,9.05693305]
[1755741498177,9.05693305,189.24,189.18,9.05693305]
[1755741498483,0.69,189.29,189.23,9.05693305]
[1755741498719,0.5293074,189.28,189.24,9.05693305]
[1755741498861,0.69,189.27,189.24,9.05693305]
[1755741499064,1.2193074,189.27,189.24,9.05693305]
[1755741499293,0.69,189.27,189.24,9.05693305]
[1755741499777,0.5293074,189.26,189.24,9.05693305]
[1755741499981,0.69,189.27,189.24,9.05693305]
[1755741500190,0.5293074,189.29,189.27,26.0]
[1755741500377,0.69,189.34,189.27,26.0]
[1755741500676,0.69,189.34,189.31,9.05693305]
[1755741500877,0.5893074,189.35,189.31,9.05693305]
[1755741501192,0.06,189.35,189.33,9.05693305]
[1755741501370,0.75,189.35,189.32,9.05693305]
[1755741501565,0.75,189.35,189.24,0.28432314]
[1755741501566,0.06,189.35,189.33,9.05693305]
[1755741501793,0.06,189.35,189.27,26.0]
[1755741501973,0.69,189.34,189.31,9.05693305]
[1755741502376,0.69,189.34,189.3,9.05693305]
[1755741502895,1.2193074,189.33,189.28,9.05693305]
[1755741503097,1.2193074,189.33,189.25,26.71]
[1755741503098,0.72,189.32,189.29,9.05693305]
[1755741503616,0.5293074,189.33,189.29,9.05693305]
[1755741503805,0.72,189.33,189.29,9.05693305]
[1755741504096,0.72,189.33,189.3,9.05693305]
[1755741504479,0.5293074,189.34,189.3,9.05693305]
[1755741504705,0.5293074,189.34,189.25,42.590998]
[1755741505000,0.72,189.33,189.31,9.05693305]
[1755741505187,0.72,189.33,189.3,9.05693305]
[1755741505388,0.72,189.33,189.29,9.05693305]
[1755741505597,0.5293074,189.32,189.29,9.05693305]
[1755741505783,1.2493074,189.32,189.28,9.05693305]
[1755741505986,0.72,189.31,189.27,9.05693305]
[1755741506293,0.5293074,189.32,189.28,9.05693305]
[1755741506603,0.5293074,189.33,189.28,9.05693305]
[1755741506773,0.72,189.32,189.28,9.05693305]
[1755741506978,0.72,189.32,189.23,41.88268]
[1755741506979,9.05693305,189.29,189.23,9.05693305]
[1755741507272,9.77693305,189.31,189.26,9.05693305]
[1755741507477,0.5293074,189.3,189.25,9.05693305]
[1755741507676,9.58624045,189.3,189.24,9.05693305]
[1755741507874,10.30624045,189.3,189.25,9.05693305]
[1755741508069,10.30624045,189.3,189.23,0.71]
[1755741508270,10.30624045,189.3,189.24,9.05693305]
[1755741508469,9.77693305,189.29,189.23,9.05693305]
[1755741508674,9.05693305,189.27,189.22,9.05693305]
[1755741508897,10.30624045,189.26,189.21,18.11386705]
[1755741509102,0.5293074,189.26,189.23,9.05693305]
[1755741509290,0.72,189.26,189.23,9.05693305]
[1755741509489,0.5293074,189.25,189.22,9.05693305]
[1755741509805,0.5293074,189.25,189.17,15.888568]
[1755741509806,0.72,189.24,189.17,15.888568]
[1755741510001,0.5293074,189.23,189.2,9.05693305]
[1755741510393,1.2493074,189.23,189.2,9.05693305]
[1755741510598,9.77693305,189.22,189.16,0.03]
[1755741510788,0.5293074,189.21,189.16,9.08693305]
[1755741510986,10.30624045,189.21,189.16,0.03]
[1755741511201,9.05693305,189.19,189.16,0.03]
[1755741511409,0.5293074,189.18,189.16,0.03]
[1755741511710,1.2493074,189.18,189.16,0.03]
[1755741512509,0.5293074,189.18,189.16,0.03]
[1755741512878,9.58624045,189.18,189.16,0.03]
[1755741513084,9.05693305,189.17,189.16,0.03]
[1755741513392,9.58624045,189.18,189.16,0.03]
[1755741513710,0.5293074,189.18,189.16,0.03]
[1755741513914,9.58624045,189.18,189.16,0.03]
[1755741514203,0.5293074,189.18,189.16,0.03]
[1755741514784,9.58624045,189.18,189.16,0.03]
[1755741514998,9.77693305,189.17,189.16,0.03]
[1755741515414,9.05693305,189.17,189.16,0.03]
[1755741515722,10.30624045,189.18,189.16,0.03]
[1755741516308,7.23768685,189.18,189.16,0.03]
[1755741516491,0.5293074,189.18,189.16,0.03]
[1755741517396,6.51768685,189.18,189.16,0.03]
[1755741517602,7.23768685,189.18,189.16,0.03]
[1755741518128,0.5293074,189.18,189.16,0.03]
[1755741518306,41.8,189.22,189.17,6.69837945]
[1755741518721,0.5293074,189.21,189.17,0.71]
[1755741518914,0.5293074,189.21,189.17,6.69837945]
[1755741519414,0.5293074,189.21,189.17,5.98837945]